bitfinex-derivatives/quotes_BNBF0:USTF0_20250511
["timestamp","ask_amount","ask_price","bid_price","bid_amount"]
[1746929128501,0.2463257,662.58,660.62,1.17648229]
[1746929128700,0.2463257,662.57,660.63,1.48719751]
[1746929129100,0.2463257,662.56,660.63,1.48719751]
[1746929129301,1.94906436,662.52,660.64,0.30269245]
[1746929129502,1.94906436,662.52,660.63,1.18450506]
[1746929130603,0.2463257,662.51,660.63,1.18450506]
[1746929130903,1.94906436,662.37,660.4,0.26313402]
[1746929131104,1.94906436,662.37,660.64,0.567]
[1746929131498,0.2463257,662.36,660.65,0.30268111]
[1746929131699,0.2463257,662.36,660.66,0.30268111]
[1746929131902,0.2463257,662.35,660.67,0.30268111]
[1746929132100,0.2463257,662.35,660.68,0.30267365]
[1746929132304,0.2463257,662.35,660.66,1.18501376]
[1746929132505,1.94906436,662.34,660.67,1.18501376]
[1746929132706,2.19539006,662.34,660.69,0.30271382]
[1746929132905,2.19539006,662.34,660.7,1.18501376]
[1746929133108,0.2463257,662.33,660.7,1.18501376]
[1746929133407,0.2463257,662.32,660.69,0.30271382]
[1746929133803,0.2463257,662.31,660.69,0.30271382]
[1746929134003,0.2463257,662.3,660.69,0.30271382]
[1746929134208,1.94906436,662.29,660.69,0.30271382]
[1746929134409,2.19539006,662.29,660.7,1.4865944]
[1746929134608,0.2463257,662.28,660.71,0.30266621]
[1746929134809,0.2463257,662.28,660.72,1.18392775]
[1746929135108,0.2463257,662.27,660.72,1.18392775]
[1746929135310,0.2463257,662.27,660.73,1.4865832]
[1746929135509,0.2463257,662.26,660.73,1.18392775]
[1746929135709,0.2463257,662.26,660.7,1.18392775]
[1746929135910,0.2463257,662.25,660.71,0.30265793]
[1746929136110,0.2463257,662.25,660.7,1.18392775]
[1746929136410,0.2463257,662.24,660.7,1.18392775]
[1746929136603,0.2463257,662.24,660.69,0.30271382]
[1746929136803,0.2463257,662.23,660.69,0.30271382]
[1746929137010,0.2463257,662.22,660.69,0.30271382]
[1746929137406,0.2463257,662.21,660.69,0.30271382]
[1746929137705,0.2463257,662.2,660.69,0.30271382]
[1746929138105,0.2463257,662.19,660.69,0.30271382]
[1746929138412,0.2463257,662.18,660.69,0.30271382]
[1746929138808,0.2463257,662.17,660.7,0.397]
[1746929139006,0.2463257,662.24,660.7,0.397]
[1746929139206,0.2463257,662.24,660.72,0.30270008]
[1746929139411,1.94906436,662.25,660.72,0.30270008]
[1746929139612,2.19532515,662.24,660.72,0.30270008]
[1746929139907,0.24626079,662.23,660.72,0.30270008]
[1746929140613,0.24626079,662.22,660.72,0.30270008]
[1746929140812,1.94906436,662.24,660.72,0.30270008]
[1746929141119,0.26310915,662.55,660.72,0.30270008]
[1746929141309,0.2462779,662.23,660.72,0.30270008]
[1746929141708,0.2462779,662.22,660.72,0.30270008]
[1746929142212,0.2462779,662.21,660.73,1.18175296]
[1746929142411,1.94906436,662.78,660.73,1.18175296]
[1746929142608,1.94906436,662.78,660.72,0.30270008]
[1746929142813,0.26305843,662.52,660.72,0.30270008]
[1746929143114,0.24619004,662.51,660.72,0.30270008]
[1746929143412,0.24619004,662.5,660.72,0.30270008]
[1746929143614,1.94906436,662.37,660.73,0.30263016]
[1746929143909,1.94906436,662.37,660.74,1.48393828]
[1746929144113,1.94906436,662.37,660.75,1.48393828]
[1746929144413,0.24619004,662.36,660.76,0.30263016]
[1746929144614,1.94906436,662.37,660.77,0.30263016]
[1746929144817,0.24626317,662.36,660.78,0.30263016]
[1746929145012,0.24626317,662.36,660.79,1.48393828]
[1746929145213,0.24626317,662.36,660.8,0.30263016]
[1746929145410,0.24626317,662.36,660.81,0.30263016]
[1746929145609,0.24626317,662.36,660.8,1.18130812]
[1746929145610,0.24626317,662.36,660.82,0.30263016]
[1746929145811,0.24626317,662.36,660.83,0.30263016]
[1746929146009,0.24626317,662.36,660.84,1.48393828]
[1746929146210,0.24626317,662.68,660.84,1.18130812]
[1746929146415,0.24626317,662.67,660.84,1.18130812]
[1746929146615,0.24626317,662.67,660.74,1.18130812]
[1746929146816,0.24626317,662.66,660.75,0.3025773]
[1746929147017,1.94906436,662.63,660.76,0.3025773]
[1746929147311,1.94906436,662.63,660.77,1.48388542]
[1746929147510,1.94906436,662.63,660.77,1.18130812]
[1746929147816,0.24620408,662.62,660.77,1.18130812]
[1746929148116,0.24620408,662.61,660.74,1.18130812]
[1746929148308,0.24620408,662.61,660.75,0.30261023]
[1746929148514,0.24620408,662.6,660.76,0.30260882]
[1746929148710,0.24620408,662.6,660.74,1.18130812]
[1746929148711,0.24620408,662.6,660.77,0.30260632]
[1746929148915,0.24620408,662.59,660.78,1.48391236]
[1746929149114,0.24620408,662.59,660.79,1.48390638]
[1746929149316,0.24620408,662.58,660.79,1.18130812]
[1746929149515,1.94906436,662.1,660.74,1.18130812]
[1746929149711,1.94906436,662.1,660.75,0.30259516]
[1746929149917,0.24620408,662.09,660.76,0.30259516]
[1746929150117,0.24620408,662.09,660.77,0.30259516]
[1746929150315,0.24620408,662.09,660.78,0.30259516]
[1746929150515,1.94906436,662.1,660.79,1.48390328]
[1746929150711,1.94906436,662.1,660.8,0.30259516]
[1746929151015,1.94906436,662.1,660.81,0.30259516]
[1746929151216,0.2461552,662.09,660.82,1.18130812]
[1746929152018,0.2461552,662.67,660.74,1.18130812]
[1746929152216,0.2461552,662.67,660.75,0.30258391]
[1746929152414,0.2461552,662.66,660.76,0.30258391]
[1746929152612,0.2461552,662.66,660.74,1.18130812]
[1746929152613,0.2461552,662.66,660.77,1.48389203]
[1746929152817,0.2461552,662.65,660.78,0.30258489]
[1746929153018,0.2461552,662.65,660.79,0.30258489]
[1746929153220,0.2461552,662.64,660.8,1.48389301]
[1746929153417,0.2461552,662.64,660.81,0.30258489]
[1746929153617,0.2461552,662.64,660.82,0.30258489]
[1746929153914,0.2461552,662.63,660.83,0.30258489]
[1746929154114,1.94906436,662.68,660.84,0.30258489]
[1746929154314,0.2461773,662.67,660.85,0.30258489]
[1746929154517,0.2461773,662.67,660.86,1.48389301]
[1746929154719,0.2461773,662.66,660.88,0.3026268]
[1746929155219,0.2461773,662.65,660.89,1.18130812]
[1746929155518,0.2461773,662.64,660.89,1.18130812]
[1746929155718,0.2461773,662.63,660.88,0.3026268]
[1746929155916,0.2461773,662.62,660.88,0.3026268]
[1746929156314,0.26301966,662.67,660.88,0.3026268]
[1746929156516,0.2461657,662.66,660.88,0.3026268]
[1746929156918,0.2461657,662.65,660.88,0.3026268]
[1746929157216,0.2461657,662.64,660.88,0.3026268]
[1746929157419,0.2461657,662.64,660.89,1.18759978]
[1746929157719,0.2461657,662.63,660.89,1.18759978]
[1746929158016,0.2461657,662.62,660.88,0.3026268]
[1746929158421,0.2461657,662.61,660.88,0.3026268]
[1746929158821,1.94906436,662.51,660.89,0.608]
[1746929159121,0.2461657,662.5,660.89,0.608]
[1746929159518,0.2461657,662.49,660.89,0.608]
[1746929160322,0.2461657,662.49,660.91,0.30261306]
[1746929160622,0.2461657,662.48,660.91,0.30261306]
[1746929161123,0.2461657,662.47,660.91,0.30261306]
[1746929161428,1.94906436,662.46,660.91,0.30261306]
[1746929161724,0.2461657,662.45,660.91,0.30261306]
[1746929162523,1.94906436,662.46,660.91,0.30261306]
[1746929162919,0.24613584,662.45,660.91,0.30261306]
[1746929163625,0.24613584,662.74,660.91,0.30261306]
[1746929163923,0.24613584,662.73,660.91,0.30261306]
[1746929164224,0.24613584,662.72,660.91,0.30261306]
[1746929164627,0.24613584,662.71,660.91,0.30261306]
[1746929164825,0.24613584,662.7,660.92,1.18753845]
[1746929165125,0.24613584,662.69,660.93,1.18753845]
[1746929165321,0.24613584,662.69,660.93,1.65353845]
[1746929165527,0.24613584,662.69,660.94,0.30248622]
[1746929165729,0.24613584,662.68,660.95,0.30248622]
[1746929165928,0.24613584,662.88,660.96,0.30248622]
[1746929166129,0.24613584,662.88,660.97,1.49002467]
[1746929166329,0.24613584,662.87,660.97,1.18753845]
[1746929166633,0.24613584,662.86,660.98,0.30237625]
[1746929166834,0.24613584,662.86,660.99,0.30237625]
[1746929167035,0.24613584,662.85,661.0,0.30237625]
[1746929167236,0.24613584,662.84,661.01,1.4899147]
[1746929167534,0.24613584,662.84,661.02,1.4899147]
[1746929167733,0.24613584,662.83,661.03,0.30237625]
[1746929168036,0.24613584,662.83,661.04,0.30237625]
[1746929168227,0.24613584,662.82,661.05,1.48990629]
[1746929168428,0.24613584,662.82,661.06,0.30236784]
[1746929168635,0.24613584,662.81,661.07,0.30236784]
[1746929168826,0.24613584,662.8,661.08,1.48990629]
[1746929169031,0.24613584,662.8,661.09,0.30236784]
[1746929169327,0.24613584,663.05,661.1,0.30236784]
[1746929169530,0.24613584,662.79,661.11,0.30236784]
[1746929169733,0.24613584,662.79,661.13,0.30251236]
[1746929169935,0.24613584,663.05,661.14,0.30236784]
[1746929170131,0.24613584,663.04,661.15,1.48990629]
[1746929170326,0.24613584,663.04,661.16,0.30236784]
[1746929170530,0.24613584,663.03,661.17,0.30236784]
[1746929170730,0.24613584,663.03,661.18,0.30236784]
[1746929170927,0.24613584,663.02,661.19,0.30236784]
[1746929171134,0.24613584,663.01,661.2,1.48990629]
[1746929171332,0.24613584,663.01,661.21,0.30236784]
[1746929171534,0.24613584,663.0,661.21,0.30236784]
[1746929171833,0.24613584,662.99,661.21,0.30236784]
[1746929172035,0.26288753,663.19,661.22,1.18753845]
[1746929172538,0.24629426,663.18,661.22,1.18753845]
[1746929172734,0.24629426,663.18,661.13,0.30251236]
[1746929172935,0.24629426,663.17,661.13,0.30251236]
[1746929173136,0.50916789,663.17,661.13,0.30251236]
[1746929173431,0.24629426,663.16,661.13,0.30251236]
[1746929173936,0.24629426,663.15,661.13,0.30251236]
[1746929174129,0.24629426,663.14,661.13,0.30251236]
[1746929174335,1.94906436,662.95,661.13,0.30251236]
[1746929174735,1.94906436,662.95,661.14,1.18288853]
[1746929174935,0.24629426,662.94,661.16,0.30249863]
[1746929175138,0.24629426,662.93,661.16,0.30249863]
[1746929175437,0.24629426,662.92,661.16,0.30249863]
[1746929175838,0.24629426,662.91,661.16,0.30249863]
[1746929176236,1.94906436,662.95,661.16,0.30249863]
[1746929176237,0.24629426,662.9,661.16,0.30249863]
[1746929176437,0.24629426,662.89,661.16,0.30249863]
[1746929176637,0.24629426,662.89,661.17,0.564]
[1746929176837,0.24629426,662.88,661.17,0.564]
[1746929177035,0.24629426,662.88,661.19,0.30248491]
[1746929177237,0.24629426,662.87,661.19,0.30248491]
[1746929177435,0.24629426,662.86,661.19,0.30248491]
[1746929177740,0.24629426,662.85,661.19,0.30248491]
[1746929178040,0.24629426,662.84,661.19,0.30248491]
[1746929178341,0.24629426,662.83,661.19,0.30248491]
[1746929178841,0.24629426,662.82,661.19,0.30248491]
[1746929179243,0.24629426,662.81,661.19,0.30248491]
[1746929179542,0.24629426,662.8,661.19,0.30248491]
[1746929180046,0.24629426,662.79,661.19,0.30248491]
[1746929180342,0.24629426,662.78,661.19,0.30248491]
[1746929180946,0.24629426,662.77,661.19,0.30248491]
[1746929181343,0.24629426,662.76,661.19,0.30248491]
[1746929181645,0.24629426,662.75,661.19,0.30248491]
[1746929182042,0.24629426,662.74,661.19,0.30248491]
[1746929182537,0.24629426,662.73,661.19,0.30248491]
[1746929183044,0.24629426,662.72,661.19,0.30248491]
[1746929183346,0.24629426,662.71,661.19,0.30248491]
[1746929183646,0.24629426,662.7,661.19,0.30248491]
[1746929183940,0.24629426,662.69,661.19,0.30248491]
[1746929184246,0.24629426,662.68,661.19,0.30248491]
[1746929184647,1.94906436,663.01,661.19,0.30248491]
[1746929184847,0.24629648,662.67,661.19,0.30248491]
[1746929185247,0.24629648,662.66,661.19,0.30248491]
[1746929185547,0.24629648,662.65,661.19,0.30248491]
[1746929185949,0.24629648,662.64,661.19,0.30248491]
[1746929186351,0.24629648,662.63,661.19,0.30248491]
[1746929186749,0.24629648,662.62,661.19,0.30248491]
[1746929187151,0.24629648,662.61,661.19,0.30248491]
[1746929187445,1.94906436,662.84,661.19,0.30248491]
[1746929187446,0.24629648,662.6,661.19,0.30248491]
[1746929187850,1.94906436,662.84,661.19,0.30248491]
[1746929187851,0.24629648,662.59,661.19,0.30248491]
[1746929188450,0.24629648,662.58,661.19,0.30248491]
[1746929188853,0.24629648,662.57,661.19,0.30248491]
[1746929189453,0.24629648,662.56,661.19,0.30248491]
[1746929189953,0.24629648,662.55,661.19,0.30248491]
[1746929190151,0.24629648,662.54,661.19,0.30248491]
[1746929190548,0.24629648,662.53,661.19,0.30248491]
[1746929190955,0.24629648,662.52,661.19,0.30248491]
[1746929191257,0.24629648,662.51,661.19,0.30248491]
[1746929191556,0.24629648,662.5,661.19,0.30248491]
[1746929192056,1.94906436,662.57,661.19,0.30248491]
[1746929192355,0.24629648,662.49,661.19,0.30248491]
[1746929192555,0.24629648,662.56,661.19,0.30248491]
[1746929193157,1.94906436,662.57,661.19,0.30248491]
[1746929193461,0.24638958,662.56,661.19,0.30248491]
[1746929193957,0.24638958,662.56,661.2,0.566]
[1746929194158,0.24638958,662.93,661.22,0.30247118]
[1746929194358,0.24638958,662.92,661.22,0.30247118]
[1746929194660,0.24638958,662.91,661.22,0.30247118]
[1746929195060,0.24638958,662.9,661.22,0.30247118]
[1746929195455,0.24638958,662.89,661.22,0.30247118]
[1746929195660,0.24638958,663.05,661.22,0.30247118]
[1746929195960,0.24638958,663.05,661.23,1.17928488]
[1746929196161,0.24638958,663.04,661.25,0.30245746]
[1746929196360,0.24638958,663.03,661.25,0.30245746]
[1746929196657,0.24638958,663.02,661.25,0.30245746]
[1746929197360,0.24638958,663.01,661.25,0.30245746]
[1746929197663,1.94906436,662.97,661.25,0.30245746]
[1746929197961,1.94906436,662.97,661.26,0.426]
[1746929198161,0.24638958,662.96,661.26,0.426]
[1746929198563,0.24638958,662.95,661.26,0.426]
[1746929198961,0.24638958,662.94,661.26,0.426]
[1746929199363,0.24638958,662.93,661.26,0.426]
[1746929199564,1.94906436,662.81,661.26,0.426]
[1746929200064,0.24638958,662.8,661.26,0.426]
[1746929200568,0.24638958,662.79,661.26,0.426]
[1746929200863,0.24638958,662.78,661.26,0.426]
[1746929201264,0.24638958,662.77,661.26,0.426]
[1746929201669,0.24638958,662.76,661.26,0.426]
[1746929202069,0.24638958,662.75,661.26,0.426]
[1746929202364,0.24638958,662.74,661.26,0.426]
[1746929202668,0.24638958,662.73,661.26,0.426]
[1746929202970,1.94906436,662.79,661.26,0.426]
[1746929203170,1.94906436,662.83,661.26,0.426]
[1746929203469,0.24635849,662.82,661.26,0.426]
[1746929203868,0.24635849,662.81,661.26,0.426]
[1746929204170,0.24635849,662.8,661.26,0.426]
[1746929204566,0.24635849,662.79,661.26,0.426]
[1746929204971,0.24635849,662.78,661.26,0.426]
[1746929205373,0.24635849,662.77,661.26,0.426]
[1746929205672,0.24635849,662.76,661.26,0.426]
[1746929206173,0.24635849,662.75,661.26,0.426]
[1746929206471,0.24635849,662.74,661.26,0.426]
[1746929206972,0.24635849,662.73,661.26,0.426]
[1746929207273,0.24635849,662.72,661.26,0.426]
[1746929207772,0.24635849,662.71,661.26,0.426]
[1746929208072,0.24635849,662.7,661.26,0.426]
[1746929208472,0.24635849,662.69,661.26,0.426]
[1746929208972,0.24635849,662.68,661.26,0.426]
[1746929209473,0.24635849,662.67,661.26,0.426]
[1746929209972,0.24635849,662.66,661.26,0.426]
[1746929210167,1.94906436,662.73,661.26,0.426]
[1746929210473,0.24633129,662.72,661.26,0.426]
[1746929210868,0.24633129,662.71,661.26,0.426]
[1746929211273,0.24633129,662.7,661.26,0.426]
[1746929211575,0.24633129,662.69,661.26,0.426]
[1746929211777,1.94906436,662.52,661.26,0.426]
[1746929212073,0.24633129,662.51,661.26,0.426]
[1746929212374,0.24633129,662.5,661.26,0.426]
[1746929212672,0.24633129,662.49,661.26,0.426]
[1746929213174,0.24633129,662.48,661.26,0.426]
[1746929213774,0.24633129,662.47,661.26,0.426]
[1746929213967,0.24633129,662.46,661.26,0.426]
[1746929214375,0.24633129,662.45,661.26,0.426]
[1746929214774,0.24633129,662.44,661.26,0.426]
[1746929215069,0.24633129,662.43,661.26,0.426]
[1746929215373,0.24633129,662.42,661.26,0.426]
[1746929215674,0.24633129,662.41,661.26,0.426]
[1746929216074,2.19539565,662.41,661.26,0.426]
[1746929216274,0.24633129,662.4,661.26,0.426]
[1746929216574,0.24633129,662.39,661.27,0.639]
[1746929216975,0.24633129,662.38,661.27,0.639]
[1746929217373,0.24633129,662.37,661.27,0.639]
[1746929217875,1.94906436,662.31,661.27,0.639]
[1746929218273,0.24633129,662.3,661.27,0.639]
[1746929218774,0.24633129,662.29,661.27,0.639]
[1746929219175,0.24633129,662.28,661.27,0.639]
[1746929219374,0.24633129,662.27,661.27,0.639]
[1746929219770,1.94906436,662.21,661.27,0.639]
[1746929220075,0.24633129,662.2,661.27,0.639]
[1746929222379,0.24633129,662.19,661.27,0.639]
[1746929222676,0.24633129,662.18,661.27,0.639]
[1746929223077,0.24633129,662.34,661.27,0.639]
[1746929223776,1.94906436,662.32,661.27,0.639]
[1746929224077,0.24633129,662.31,661.27,0.639]
[1746929225673,0.24633129,662.64,661.27,0.639]
[1746929226077,0.24633129,662.63,661.27,0.639]
[1746929226378,0.24633129,662.62,661.27,0.639]
[1746929226678,0.24633129,662.61,661.27,0.639]
[1746929227277,0.24633129,662.6,661.27,0.639]
[1746929228078,0.24633129,662.59,661.27,0.639]
[1746929228378,0.24633129,662.58,661.27,0.639]
[1746929228575,1.94906436,662.63,661.27,0.639]
[1746929229073,0.24671285,662.62,661.27,0.639]
[1746929229277,0.24671285,662.61,661.27,0.639]
[1746929229580,0.24671285,662.6,661.27,0.639]
[1746929229779,0.24671285,662.6,661.29,0.30243917]
[1746929230080,0.24671285,662.59,661.29,0.30243917]
[1746929230272,0.24671285,662.58,661.29,0.30243917]
[1746929230581,0.24671285,662.57,661.29,0.30243917]
[1746929231080,0.24671285,662.56,661.29,0.30243917]
[1746929231580,0.24671285,662.55,661.29,0.30243917]
[1746929231979,0.24671285,662.54,661.29,0.30243917]
[1746929232183,0.24671285,662.54,661.3,0.392]
[1746929232481,0.24671285,662.53,661.3,0.392]
[1746929232679,1.94906436,662.75,661.3,0.392]
[1746929232879,0.24675021,662.74,661.3,0.392]
[1746929233280,0.24675021,662.73,661.3,0.392]
[1746929233480,0.24675021,662.73,661.32,0.30242545]
[1746929233679,1.94906436,662.75,661.32,0.30242545]
[1746929233680,0.24675021,662.72,661.32,0.30242545]
[1746929234079,0.24675021,662.71,661.32,0.30242545]
[1746929234477,0.24675021,662.7,661.32,0.30242545]
[1746929234875,0.24675021,662.69,661.32,0.30242545]
[1746929235274,0.24675021,662.68,661.32,0.30242545]
[1746929235479,0.24675021,662.67,661.32,0.30242545]
[1746929235881,0.24675021,662.66,661.32,0.30242545]
[1746929236180,0.24675021,662.69,661.32,0.30242545]
[1746929236477,0.24675021,662.69,661.33,1.18605772]
[1746929236781,2.19581457,662.69,661.33,1.18605772]
[1746929236982,2.19581457,662.69,661.34,0.30238121]
[1746929237282,2.19581457,662.69,661.35,1.48843893]
[1746929237478,0.24675021,662.68,661.36,0.30238121]
[1746929237683,0.24675021,662.68,661.36,1.18605772]
[1746929238484,0.24675021,662.68,661.32,0.30242545]
[1746929239083,1.941493,663.3,661.32,0.30242545]
[1746929239084,1.94906436,663.01,661.32,0.30242545]
[1746929239281,1.94906436,663.01,661.33,1.18469493]
[1746929239485,0.24686597,663.0,661.33,1.18469493]
[1746929239885,0.24686597,662.99,661.34,1.18469493]
[1746929240489,0.24686597,662.99,661.35,1.18469493]
[1746929240789,0.24686597,662.98,661.35,1.18469493]
[1746929241189,0.24686597,662.98,661.32,0.30242545]
[1746929241190,0.24686597,662.98,661.36,1.18469493]
[1746929241390,0.24686597,662.97,661.36,1.18469493]
[1746929241791,0.24686597,662.96,661.32,0.30242545]
[1746929242091,0.24686597,662.95,661.33,1.18304113]
[1746929242489,0.24686597,662.94,661.33,1.18304113]
[1746929242690,0.24686597,662.94,661.34,1.18304113]
[1746929242888,0.24686597,662.93,661.34,1.18304113]
[1746929243085,0.24686597,662.93,661.35,1.18304113]
[1746929243390,0.24686597,662.92,661.35,1.81504113]
[1746929243691,0.24686597,662.91,661.35,0.632]
[1746929244091,0.24686597,662.9,661.35,0.632]
[1746929244392,0.24686597,662.89,661.35,0.632]
[1746929244693,0.24686597,662.88,661.35,0.632]
[1746929244991,0.24686597,662.87,661.35,0.632]
[1746929245392,0.24686597,662.86,661.35,0.632]
[1746929245792,0.24686597,662.85,661.35,0.632]
[1746929246193,0.24686597,662.84,661.36,0.616]
[1746929246588,0.24686597,662.83,661.36,0.616]
[1746929246894,0.24686597,662.82,661.36,0.616]
[1746929247290,0.24686597,662.81,661.38,0.30239801]
[1746929247592,0.24686597,662.8,661.38,0.30239801]
[1746929247994,0.24686597,662.79,661.38,0.30239801]
[1746929248294,0.24686597,662.78,661.38,0.30239801]
[1746929248895,1.94906436,662.66,661.38,0.30239801]
[1746929249295,0.24686597,662.65,661.38,0.30239801]
[1746929251095,1.94906436,663.1,661.38,0.30239801]
[1746929251495,0.24661156,663.09,661.38,0.30239801]
[1746929251693,0.24661156,663.08,661.38,0.30239801]
[1746929252194,0.24661156,663.07,661.38,0.30239801]
[1746929252594,0.24661156,663.06,661.38,0.30239801]
[1746929252995,0.24661156,663.05,661.38,0.30239801]
[1746929253498,0.24661156,663.04,661.38,0.30239801]
[1746929253898,0.24661156,663.03,661.38,0.30239801]
[1746929254400,0.24661156,663.02,661.38,0.30239801]
[1746929254999,0.24661156,663.01,661.38,0.30239801]
[1746929255400,0.24661156,663.0,661.38,0.30239801]
[1746929255700,0.24661156,663.19,661.38,0.30239801]
[1746929256102,0.24661156,663.18,661.38,0.30239801]
[1746929256698,0.24661156,663.17,661.38,0.30239801]
[1746929256905,0.24661156,663.16,661.38,0.30239801]
[1746929257303,0.24661156,663.15,661.38,0.30239801]
[1746929257599,0.24661156,663.14,661.38,0.30239801]
[1746929257903,0.24661156,663.13,661.38,0.30239801]
[1746929258305,0.24661156,663.12,661.38,0.30239801]
[1746929258603,0.24661156,663.11,661.38,0.30239801]
[1746929259002,0.24661156,663.1,661.38,0.30239801]
[1746929259206,0.24661156,663.09,661.38,0.30239801]
[1746929259503,0.24661156,663.08,661.38,0.30239801]
[1746929259906,0.24661156,663.07,661.38,0.30239801]
[1746929260206,0.24661156,663.06,661.38,0.30239801]
[1746929260607,0.24661156,663.05,661.38,0.30239801]
[1746929260801,1.94906436,663.01,661.38,0.30239801]
[1746929261207,0.24649352,663.0,661.38,0.30239801]
[1746929261502,0.24649352,662.99,661.38,0.30239801]
[1746929261806,1.94906436,663.01,661.38,0.30239801]
[1746929262109,0.24649767,663.0,661.38,0.30239801]
[1746929262407,1.94906436,662.94,661.38,0.30239801]
[1746929263008,0.24649767,662.93,661.38,0.30239801]
[1746929263305,1.94906436,662.94,661.38,0.30239801]
[1746929263306,0.24649767,662.92,661.38,0.30239801]
[1746929263799,0.24649767,662.91,661.39,0.476]
[1746929264001,0.24649767,662.9,661.39,0.476]
[1746929264205,0.24649767,662.9,661.4,0.714]
[1746929264401,0.24649767,662.89,661.4,0.714]
[1746929264603,0.24649767,662.88,661.4,0.714]
[1746929265008,0.24649767,662.87,661.4,0.714]
[1746929265408,0.24649767,662.86,661.42,0.30237972]
[1746929265904,0.24649767,662.85,661.42,0.30237972]
[1746929266102,0.24649767,662.84,661.42,0.30237972]
[1746929266503,0.24649767,662.83,661.42,0.30237972]
[1746929266906,0.24649767,662.82,661.42,0.30237972]
[1746929267206,0.24649767,662.81,661.42,0.30237972]
[1746929267701,0.24649767,662.93,661.43,1.18106988]
[1746929268308,0.24649767,662.93,661.42,0.30237972]
[1746929268608,1.94906436,662.95,661.42,0.30237972]
[1746929268609,0.24649767,662.94,661.42,0.30237972]
[1746929269509,1.94906436,662.95,661.42,0.30237972]
[1746929269905,1.94906436,662.95,661.43,0.516]
[1746929270111,0.24670775,662.94,661.43,0.516]
[1746929270814,0.24670775,663.16,661.43,0.516]
[1746929271217,0.24670775,663.15,661.43,0.516]
[1746929271408,1.94906436,663.04,661.45,0.30236601]
[1746929271918,0.24670775,663.03,661.45,0.30236601]
[1746929272417,0.24670775,663.02,661.45,0.30236601]
[1746929273018,0.24670775,663.03,661.45,0.30236601]
[1746929273718,0.24670775,663.02,661.45,0.30236601]
[1746929274019,0.24670775,663.04,661.45,0.30236601]
[1746929275817,0.24670775,663.23,661.45,0.30236601]
[1746929276119,0.24670775,663.22,661.45,0.30236601]
[1746929276518,0.24670775,663.21,661.45,0.30236601]
[1746929276914,0.24670775,663.2,661.45,0.30236601]
[1746929277419,0.24670775,663.19,661.45,0.30236601]
[1746929277821,0.24670775,663.24,661.45,0.30236601]
[1746929278121,0.24670775,663.24,661.46,1.18015416]
[1746929278320,0.24670775,663.24,661.48,0.3023523]
[1746929278919,0.24670775,663.24,661.49,1.18015416]
[1746929279313,0.24670775,663.24,661.51,0.30233858]
[1746929279513,0.26275454,663.45,661.51,0.30233858]
[1746929279818,0.2468108,663.44,661.52,1.18015416]
[1746929280720,0.2468108,663.44,661.53,1.18015416]
[1746929280919,0.2468108,663.43,661.53,1.18015416]
[1746929281321,0.2468108,663.42,661.53,1.18015416]
[1746929281621,1.94906436,664.5,661.54,1.61115416]
[1746929281921,1.94906436,663.01,661.54,1.61115416]
[1746929282120,1.94906436,663.01,661.55,1.18015416]
[1746929282621,0.24690505,663.0,661.56,1.18015416]
[1746929283323,0.24690505,663.0,661.57,1.18015416]
[1746929284224,0.24690505,663.0,661.58,1.18015416]
[1746929284926,0.24690505,663.0,661.59,1.18015416]
[1746929285127,0.24690505,663.0,661.6,1.18015416]
[1746929285422,0.24690505,663.57,661.6,1.18015416]
[1746929285727,0.24690505,663.56,661.61,1.18015416]
[1746929286128,0.24690505,663.55,661.61,1.18015416]
[1746929286336,0.24690505,663.55,661.62,1.18015416]
[1746929286627,0.24690505,663.54,661.63,1.18015416]
[1746929286927,0.24690505,663.53,661.63,1.18015416]
[1746929287227,0.50961595,663.53,661.63,1.18015416]
[1746929287428,0.24690505,663.52,661.64,1.18015416]
[1746929287828,0.24690505,663.51,661.64,1.18015416]
[1746929288028,0.24690505,663.51,661.55,1.18015416]
[1746929288226,0.2627109,663.53,661.55,1.18015416]
[1746929288529,0.24696908,663.52,661.55,1.18015416]
[1746929288927,0.24696908,663.51,661.57,0.30231116]
[1746929289327,0.24696908,663.5,661.58,1.18015416]
[1746929289729,0.24696908,663.49,661.58,1.18015416]
[1746929290124,0.24696908,663.52,661.59,1.18015416]
[1746929290423,0.24696908,663.51,661.59,1.18015416]
[1746929290628,0.24696908,663.51,661.6,0.413]
[1746929290830,0.24696908,663.5,661.6,1.59315416]
[1746929291129,0.24696908,663.49,661.6,1.59315416]
[1746929291331,0.24696908,663.49,661.61,1.18015416]
[1746929291531,0.24696908,663.68,661.61,1.18015416]
[1746929291829,0.24696908,663.67,661.61,1.18015416]
[1746929292031,0.24696908,663.67,661.62,1.18015416]
[1746929292532,0.24696908,663.66,661.62,1.18015416]
[1746929292930,0.24696908,663.65,661.62,1.18015416]
[1746929293231,0.24696908,663.64,661.62,1.18015416]
[1746929293527,0.24696908,663.64,661.63,1.18015416]
[1746929293832,0.24696908,663.68,661.63,1.18015416]